[Event "Israel Open Championship 2023"]
[Site "Acre"]
[Date "2024.01.28"]
[Round "8.6"]
[White "Gorshtein, Ido"]
[Black "Liubarov, Mark"]
[Result "1-0"]
[ECO "D35"]
[WhiteElo "2523"]
[BlackElo "2305"]
[Annotator "TA"]
[PlyCount "129"]
[EventDate "2024.01.18"]
[EventType "swiss"]
[EventCountry "ISR"]
[SourceTitle "playchess.com"]
[Source "ChessBase"]
[SourceQuality "1"]
[TimeControl "5400+30"]

{[%evp 50,129,112,110,109,110,106,107,176,163,205,206,233,243,253,220,256,263,237,210,206,140,140,138,136,139,220,219,298,308,459,459,901,1234,1241,425,425,425,2375,463,2833,610,1466,3913,2700,208,4423,2308,1489,861,312,312,6075,6079,5316,5144,4133,2149,5126,237,1414,8,29964,29968,29967,29968,29968,29967,29971,29973,29974,29976,29976,29977,29977,29978,29977,29978,29979,29980,29981,29982]} 1. d4 {[%emt 0:00:45]} Nf6 {[%emt 0:00:14]} 2. c4 {[%emt 0:00:18]} e6 {[%emt 0:00:05]} 3. Nc3 {[%emt 0:00:12]} d5 {[%emt 0:00:04]} 4. cxd5 {[%emt 0:00:09]} exd5 {[%emt 0:00:05]} 5. Bg5 {[%emt 0:00:06]} Be7 {[%emt 0:00:36]} 6. e3 {[%emt 0:00:08]} O-O {[%emt 0:00:14]} 7. Bd3 {[%emt 0:00:06]} h6 {[%emt 0:00:34]} 8. Bh4 {[%emt 0:00:28]} b6 {[%emt 0:02:50]} 9. Nge2 {[%emt 0:02:39] D35: Queen's Gambit Declined: Exchange Variation.} c5 {[%emt 0:02:59]} 10. O-O {[%emt 0:02:07]} Bb7 {[%emt 0:03:54]} 11. Rc1 {[%emt 0:01:34]} Nbd7 {[%emt 0:00:57]} 12. Bf5 {[%emt 0:01:33]} g6 {[%emt 0:08:34]} 13. Bxd7 $146 {[%emt 0:03:27]} ({Predecessor:} 13. Bb1 Rc8 14. f3 Re8 15. Bf2 Nf8 16. Qd2 Ne6 17. Rcd1 Bf8 18. Bg3 cxd4 19. exd4 {½-½ Dubreuil,J (2304)-Mayer,I (2141) Budapest FS07 IM-A 2007 (9)}) 13... Qxd7 {[%emt 0:05:50]} 14. dxc5 {[%emt 0:05:11]} bxc5 {[%emt 0:04:59]} 15. Bxf6 {[%emt 0:00:59]} Bxf6 {[%emt 0:00:05]} 16. Na4 {[%emt 0:03:44]} c4 {[%emt 0:07:45]} 17. Rxc4 {[%emt 0:03:50]} Rfd8 {[%emt 0:07:32]} 18. Nc5 {[%emt 0:05:16]} Qe7 {[%emt 0:09:38]} 19. Rc2 {[%emt 0:02:39]} Rac8 {[%emt 0:11:20]} 20. Nxb7 {[%emt 0:08:26]} Qxb7 {[%emt 0:00:10]} 21. Rxc8 {[%emt 0:00:28]} Rxc8 {[%emt 0:02:51]} 22. b3 {[%emt 0:00:07]} Qb4 {[%emt 0:07:41]} 23. Nf4 {[%emt 0:04:15]} d4 {[%emt 0:00:35]} 24. Nd5 {[%emt 0:01:53]} Qd6 {[%emt 0:00:05]} 25. Nxf6+ {[%emt 0:01:03]} Qxf6 {[%emt 0:00:02]} 26. Qxd4 {[%emt 0:00:41]} Qxd4 {[%emt 0:00:59]} 27. exd4 {[%emt 0:00:02]} Rc2 {[%emt 0:00:23] [#]} 28. Ra1 $1 {[%emt 0:00:51]} f5 {[%emt 0:07:46]} (28... Rb2 $16 {is a better defense.} 29. g3 Rd2) 29. g3 {[%emt 0:01:07]} Kf7 {[%emt 0:00:25]} 30. Kg2 {[%emt 0:00:42]} Ke6 {[%emt 0:04:59]} 31. Re1+ {[%emt 0:00:47]} Kf6 {[%emt 0:00:21]} 32. a4 {[%emt 0:03:59]} Rd2 {[%emt 0:00:34]} 33. Rc1 {[%emt 0:00:11]} Rxd4 {[%emt 0:01:08]} 34. Rc6+ {[%emt 0:00:07]} Kg5 {[%emt 0:01:27]} 35. h4+ {[%emt 0:06:29]} Kh5 {[%emt 0:00:06]} 36. Rc4 {[%emt 0:03:59]} Rd3 {[%emt 0:00:59]} 37. b4 {[%emt 0:01:09]} Ra3 {[%emt 0:00:52] [#]} (37... Rb3 $16 38. b5 Ra3) 38. a5 $1 $18 {[%emt 0:01:17]} Rb3 {[%emt 0:00:41]} 39. a6 {[%emt 0:01:25]} g5 {[%emt 0:06:52]} (39... Rb2 {was worth a try.} 40. Kf3 Rb1) 40. hxg5 $18 {[%emt 0:11:47]} hxg5 {[%emt 0:00:24]} (40... Kxg5 $142 41. Rc7 Rxb4 42. Rxa7 Ra4) 41. Rc7 $18 {[%emt 0:01:53]} Rxb4 {[%emt 0:00:00]} 42. Rxa7 {[%emt 0:00:00]} Ra4 {[%emt 0:00:00]} 43. Ra8 {[%emt 0:00:00]} Kg6 {[%emt 0:00:00]} (43... Kh6 $142 44. Kf1 Kg7) 44. a7 $18 {[%emt 0:00:00]} Kg7 {[%emt 0:00:00]} (44... Kh7 $142 45. Kf1 Kg7) 45. f3 $18 {[%emt 0:00:00]} Ra2+ {[%emt 0:00:00]} 46. Kf1 {[%emt 0:00:00]} Kh7 {[%emt 0:00:28]} 47. Ke1 {[%emt 0:00:00]} Kg7 $2 {[%emt 0:00:02]} (47... f4 48. g4 Kg7) 48. Kd1 $18 {[%emt 0:00:00]} Kh7 {[%emt 0:01:08]} 49. Kc1 {[%emt 0:00:00]} Kg7 {[%emt 0:00:01]} 50. Kb1 {[%emt 0:00:00]} Ra5 $2 {[%emt 0:00:45]} (50... Ra6 51. Kc2 f4) 51. Kb2 $18 {[%emt 0:00:00]} Ra6 {[%emt 0:01:20]} 52. Kb3 {[%emt 0:00:00]} Ra1 {[%emt 0:00:13]} 53. Kb4 {[%emt 0:00:00]} Ra2 {[%emt 0:01:59]} 54. Kc5 $2 {[%emt 0:00:00]} (54. Kb5 Ra3 55. Kb6 Rb3+ 56. Kc5) 54... Ra3 $2 {[%emt 0:00:39]} (54... Ra6 55. Kb5 Ra1) 55. f4 $2 {[%emt 0:00:00]} ({White must play} 55. Kb5 $18 {Kc6 would now be deadly.} Ra1 56. Kb6 Rb1+ 57. Kc6) 55... Kh7 $2 {[%emt 0:02:37][%mdl 8192]} (55... gxf4 $11 56. gxf4 Ra6) 56. Kd5 {[%emt 0:00:00]} (56. fxg5 Ra2 57. Kd6 Ra6+ 58. Ke5 Kg7 59. Kxf5 Ra4 $18) 56... Kg7 {[%emt 0:01:04]} 57. Ke5 {[%emt 0:00:00]} ({Weaker is} 57. fxg5 Rd3+ 58. Ke5 Ra3 59. Kxf5 Ra2 $18) 57... Ra5+ {[%emt 0:00:31]} 58. Ke6 {[%emt 0:00:00]} Ra4 {[%emt 0:00:37]} 59. Kxf5 {[%emt 0:00:00]} gxf4 {[%emt 0:00:25]} 60. gxf4 {[%emt 0:00:00]} Ra5+ {[%emt 0:00:27]} 61. Ke4 {[%emt 0:00:00]} Ra4+ {[%emt 0:00:29]} 62. Kd3 {[%emt 0:00:00]} Ra3+ {[%emt 0:00:28]} 63. Kc2 {[%emt 0:00:00]} Ra5 {[%emt 0:00:37]} 64. f5 {[%emt 0:00:00]} Ra6 {[%emt 0:00:29]} 65. f6+ {[%emt 0:00:00]} 1-0

[Event "Israel Open Championship 2023"]
[Site "Acre"]
[Date "2024.01.28"]
[Round "8.7"]
[White "Flom, Gabriel"]
[Black "Shohat, Yotam"]
[Result "1/2-1/2"]
[ECO "D35"]
[WhiteElo "2421"]
[BlackElo "2328"]
[Annotator "TA"]
[PlyCount "59"]
[EventDate "2024.01.18"]
[EventType "swiss"]
[EventCountry "ISR"]
[SourceTitle "playchess.com"]
[Source "ChessBase"]
[SourceQuality "1"]
[TimeControl "5400+30"]

{[%evp 12,59,20,15,20,4,7,-27,-20,-10,11,0,13,0,31,-19,0,-62,-56,-47,-70,-68,-61,-62,-73,-62,-65,-60,-72,-69,-65,-64,-72,-67,-58,-60,-59,-63,-60,-62,-58,-84,0,0,0,0,0,0,0,0]} 1. d4 {[%emt 0:00:02]} Nf6 {[%emt 0:00:49]} 2. c4 {[%emt 0:00:09]} e6 {[%emt 0:00:05]} 3. Nc3 {[%emt 0:01:07]} d5 {[%emt 0:00:24]} 4. cxd5 {[%emt 0:00:57]} Nxd5 {[%emt 0:00:04]} 5. e4 {[%emt 0:03:05]} Nxc3 {[%emt 0:00:05]} 6. bxc3 {[%emt 0:00:02]} c5 {[%emt 0:00:06]} 7. Rb1 {[%emt 0:00:34]} Be7 {[%emt 0:00:17]} 8. Nf3 {[%emt 0:00:42]} O-O {[%emt 0:01:30]} 9. h4 {[%emt 0:00:11]} cxd4 {[%emt 0:08:50] Black has an edge.} 10. cxd4 {[%emt 0:00:04]} Nc6 {[%emt 0:00:05]} 11. h5 {[%emt 0:00:41]} h6 {[%emt 0:07:04]} 12. Bb5 {[%emt 0:18:47]} Qc7 {[%emt 0:05:14]} 13. Qc2 {[%emt 0:14:28]} (13. O-O $14) 13... Bd7 {[%emt 0:14:15]} 14. d5 {[%emt 0:03:54]} ({White should play} 14. O-O $11 a6 15. Be2) 14... exd5 $15 {[%emt 0:07:42]} 15. exd5 {[%emt 0:00:07][%cal Oe1g1] 0-0! is the strong threat.} Qa5+ {[%emt 0:01:06]} 16. Qd2 $1 {[%emt 0:02:06][%cal Od2a5] Qxa5! would now be deadly.} Bb4 {[%emt 0:02:24]} 17. Rxb4 {[%emt 0:00:02]} Nxb4 {[%emt 0:33:57]} 18. Bxd7 {[%emt 0:00:12]} Rad8 {[%emt 0:00:38]} 19. Ne5 {[%emt 0:01:39] [#]} Rxd7 $1 {[%emt 0:09:49]} 20. Nxd7 {[%emt 0:00:09]} Re8+ {[%emt 0:00:04]} 21. Kf1 {[%emt 0:00:16][%cal Od7f6] aiming for Nf6+!} Qb5+ {[%emt 0:00:20]} 22. Kg1 {[%emt 0:00:22]} Nxd5 {[%emt 0:00:17]} (22... Qxd7 $2 {perishes.} 23. Qxb4 Qxd5 24. Qg4 $18) 23. Rh4 {[%emt 0:00:30][%cal Bh1h4,Bh4d4,Bd4d5][%mdl 32] Threatens to win with Rd4!} Qxd7 {[%emt 0:00:18]} 24. Rd4 {[%emt 0:00:05]} Rd8 {[%emt 0:02:08]} 25. Bb2 {[%emt 0:00:19]} Qe6 {[%emt 0:02:06]} 26. g4 {[%emt 0:08:14] [#]} Re8 {[%emt 0:01:21]} 27. Rxd5 $11 {[%emt 0:01:14] Black must now prevent Qd4. The position is equal.} Qxg4+ {[%emt 0:00:08]} 28. Kf1 {[%emt 0:00:02] And now Qd3 would win.} Qh3+ {[%emt 0:00:07]} (28... Qf3 $5 29. Kg1 $8 Qg4+ 30. Kh2 Qh4+ 31. Kg2 Qg4+ 32. Kh2 Qh4+ 33. Kg2 Qg4+ 34. Kh2 $11) 29. Kg1 {[%emt 0:00:03]} Qg4+ $1 {[%emt 0:00:58]} 30. Kf1 {[%emt 0:00:02] Weighted Error Value: White=0.15 (very precise) /Black=0.08 (flawless) .  Mistake:       	White=2     	Black=1      Inaccurate:     	White=2     	Black=1      OK:         	White=9     	Black=11     Best:        	White=3     	Black=2      Strong:       	White=1     	Black=1      Brilliant:      	---       	Black=1} 1/2-1/2

[Event "Israel Open Championship 2023"]
[Site "Acre"]
[Date "2024.01.28"]
[Round "8.8"]
[White "Baron, Tal"]
[Black "Tifferet, Shakked"]
[Result "1-0"]
[ECO "B33"]
[WhiteElo "2490"]
[BlackElo "2334"]
[Annotator "RC"]
[PlyCount "181"]
[EventDate "2024.01.18"]
[EventType "swiss"]
[EventCountry "ISR"]
[SourceTitle "playchess.com"]
[Source "ChessBase"]
[SourceQuality "1"]
[TimeControl "5400+30"]

1. e4 {[%emt 0:00:02]} c5 {[%emt 0:00:26]} 2. Nf3 {[%emt 0:00:04]} Nc6 {[%emt 0:00:05]} 3. d4 {[%emt 0:01:27]} cxd4 {[%emt 0:00:08]} 4. Nxd4 {[%emt 0:00:01]} Nf6 {[%emt 0:00:06]} 5. Nc3 {[%emt 0:00:03]} e5 {[%emt 0:00:06]} 6. Ndb5 {[%emt 0:00:13]} d6 {[%emt 0:00:06]} 7. Bg5 {[%emt 0:04:43]} a6 {[%emt 0:01:14]} 8. Na3 {[%emt 0:00:02]} b5 {[%emt 0:00:09]} 9. Bxf6 {[%emt 0:01:17]} gxf6 {[%emt 0:00:11]} 10. Nd5 {[%emt 0:00:06]} f5 {[%emt 0:00:15]} 11. Bd3 {[%emt 0:02:52]} Be6 {[%emt 0:00:35]} 12. O-O {[%emt 0:06:02]} Bxd5 {[%emt 0:00:32]} 13. exd5 {[%emt 0:00:02]} Ne7 {[%emt 0:00:06]} 14. Re1 {[%emt 0:07:31]} Bg7 {[%emt 0:00:54]} 15. c3 {[%emt 0:00:25]} O-O {[%emt 0:02:33]} 16. Nc2 {[%emt 0:02:39]} e4 {[%emt 0:26:44]} 17. Bf1 {[%emt 0:00:12]} Ng6 {[%emt 0:01:36]} 18. Qh5 {[%emt 0:10:40]} Qf6 {[%emt 0:04:07]} 19. Ne3 {[%emt 0:01:06]} Ne7 {[%emt 0:01:18]} 20. f4 {[%emt 0:01:06]} Rfb8 {[%emt 0:09:31]} 21. Rab1 {[%emt 0:13:27]} a5 {[%emt 0:01:15]} 22. Red1 {[%emt 0:13:19]} b4 {[%emt 0:01:34]} 23. c4 {[%emt 0:02:11]} Rc8 {[%emt 0:00:31]} 24. Kf2 {[%emt 0:03:31]} b3 {[%emt 0:09:03]} 25. a3 {[%emt 0:00:33]} Kh8 {[%emt 0:01:40]} 26. g3 {[%emt 0:00:41]} Qg6 {[%emt 0:00:06]} 27. Be2 {[%emt 0:00:10]} Rc7 {[%emt 0:00:45]} 28. Rd2 {[%emt 0:00:52]} Rg8 {[%emt 0:02:49]} 29. Qh3 {[%emt 0:05:27]} Qf6 {[%emt 0:06:58]} 30. Rc1 {[%emt 0:01:24]} Rc5 {[%emt 0:00:43]} 31. Rg1 {[%emt 0:01:12]} Bh6 {[%emt 0:01:03]} 32. Qh5 {[%emt 0:00:44]} Rg6 {[%emt 0:01:17]} 33. Bf1 {[%emt 0:04:19]} Bg7 {[%emt 0:01:36]} 34. h4 {[%emt 0:01:04]} a4 {[%emt 0:05:57]} 35. Bh3 {[%emt 0:00:34]} Rh6 {[%emt 0:00:07]} 36. Qg5 {[%emt 0:00:07]} Rg6 {[%emt 0:00:05]} 37. Qxf6 {[%emt 0:00:44]} Rxf6 {[%emt 0:00:07]} 38. h5 {[%emt 0:03:30]} Kg8 {[%emt 0:17:17]} 39. Rh1 {[%emt 0:00:43]} Kf8 {[%emt 0:00:32]} 40. Bf1 {[%emt 0:02:35]} Ng8 {[%emt 0:04:12]} 41. Be2 {[%emt 0:01:21]} Nh6 {[%emt 0:00:00]} 42. Rh4 {[%emt 0:00:00]} Ke7 {[%emt 0:00:00]} 43. Nd1 {[%emt 0:00:00]} Ng8 {[%emt 0:00:00]} 44. Nc3 {[%emt 0:00:00]} Rh6 {[%emt 0:00:00]} 45. Nxa4 {[%emt 0:00:00]} Ra5 {[%emt 0:00:00]} 46. Nc3 {[%emt 0:00:00]} Bxc3 {[%emt 0:00:00]} 47. bxc3 {[%emt 0:00:00]} Nf6 {[%emt 0:00:00]} 48. Rb2 {[%emt 0:00:00]} Rxa3 {[%emt 0:00:00]} 49. Ke3 {[%emt 0:00:00]} Nd7 {[%emt 0:00:00]} 50. Rh1 {[%emt 0:00:00]} Nc5 {[%emt 0:00:00]} 51. Rhb1 {[%emt 0:00:00]} Kd7 {[%emt 0:00:00]} 52. Kf2 {[%emt 0:00:00]} Kc7 {[%emt 0:00:38]} 53. Kg2 {[%emt 0:00:00]} Nd3 {[%emt 0:05:10]} 54. Rd2 {[%emt 0:00:00]} b2 {[%emt 0:00:43]} 55. Bxd3 {[%emt 0:00:00]} exd3 {[%emt 0:00:02]} 56. Rdxb2 {[%emt 0:00:00]} Ra7 {[%emt 0:01:57]} 57. Rh1 {[%emt 0:00:00]} Ra3 {[%emt 0:01:28]} 58. Rhb1 {[%emt 0:00:00]} Ra7 {[%emt 0:00:01]} 59. Re1 {[%emt 0:00:00]} Kd7 {[%emt 0:00:24]} 60. Rh1 {[%emt 0:00:00]} Rc7 {[%emt 0:00:24]} 61. Kf3 {[%emt 0:00:00]} Rxc4 {[%emt 0:01:13]} 62. Rb7+ {[%emt 0:00:00]} Ke8 {[%emt 0:00:36]} 63. Ra1 {[%emt 0:00:00]} Kf8 {[%emt 0:00:33]} 64. Raa7 {[%emt 0:00:00]} Rf6 {[%emt 0:00:05]} 65. h6 {[%emt 0:04:54]} Rc8 {[%emt 0:00:01]} 66. Ke3 {[%emt 0:00:14]} Kg8 {[%emt 0:00:50]} 67. Kxd3 {[%emt 0:00:37]} Rxh6 {[%emt 0:00:59]} 68. Rxf7 {[%emt 0:04:19]} Rg6 {[%emt 0:00:02]} 69. c4 {[%emt 0:00:07]} Rxg3+ {[%emt 0:00:09]} 70. Kd4 {[%emt 0:00:05]} Re8 {[%emt 0:01:23]} 71. Rae7 {[%emt 0:00:05]} Rxe7 {[%emt 0:00:13]} 72. Rxe7 {[%emt 0:00:03]} Rf3 {[%emt 0:00:32]} 73. Rd7 {[%emt 0:00:29]} Rxf4+ {[%emt 0:00:09]} 74. Kc3 {[%emt 0:00:06]} h5 {[%emt 0:01:06]} 75. Rxd6 {[%emt 0:00:02]} h4 {[%emt 0:00:25]} 76. c5 {[%emt 0:00:01]} Kg7 {[%emt 0:00:32]} 77. c6 {[%emt 0:00:28]} Rf1 {[%emt 0:00:32]} 78. Kd2 {[%emt 0:00:58]} Rf2+ {[%emt 0:00:23]} 79. Kd3 {[%emt 0:00:47]} Rf3+ {[%emt 0:00:31]} 80. Kd4 {[%emt 0:00:32]} Rf4+ {[%emt 0:00:07]} 81. Kd3 {[%emt 0:01:36]} Rf3+ {[%emt 0:00:20]} 82. Ke2 {[%emt 0:00:43]} Rc3 {[%emt 0:00:06]} 83. Rd7+ {[%emt 0:00:25]} Kg6 {[%emt 0:01:19]} 84. c7 {[%emt 0:00:02]} h3 {[%emt 0:00:22]} 85. Kf2 {[%emt 0:00:03]} f4 {[%emt 0:00:47]} 86. Rd6+ {[%emt 0:00:05]} Kg5 {[%emt 0:00:31]} 87. Rc6 {[%emt 0:00:03]} h2 {[%emt 0:00:31]} 88. Kg2 {[%emt 0:00:03]} f3+ {[%emt 0:00:35]} 89. Kxh2 {[%emt 0:00:12]} f2 {[%emt 0:00:29]} 90. Kg2 {[%emt 0:00:02]} Rf3 {[%emt 0:00:28]} 91. Kf1 {[%emt 0:00:02]} 1-0

[Event "Israel Open Championship 2023"]
[Site "Acre"]
[Date "2024.01.28"]
[Round "8.9"]
[White "Efroimski, Marsel"]
[Black "Milikow, Yoav"]
[Result "1-0"]
[ECO "C43"]
[WhiteElo "2434"]
[BlackElo "2376"]
[Annotator "TA"]
[PlyCount "53"]
[EventDate "2024.01.18"]
[EventType "swiss"]
[EventCountry "ISR"]
[SourceTitle "playchess.com"]
[Source "ChessBase"]
[SourceQuality "1"]
[TimeControl "5400+30"]

{[%evp 9,53,9,17,16,18,4,10,7,17,16,21,13,25,23,49,50,41,44,86,71,61,52,114,108,91,92,93,87,85,90,75,71,120,124,171,171,170,157,160,156,151,161,157,177,168,145]} 1. e4 {[%emt 0:00:03]} e5 {[%emt 0:00:04]} 2. Nf3 {[%emt 0:00:05]} Nf6 {[%emt 0:00:14]} 3. d4 {[%emt 0:00:51]} Nxe4 {[%emt 0:00:37]} 4. Bd3 {[%emt 0:00:03]} Nc6 {[%emt 0:00:50]} 5. Nxe5 {[%emt 0:00:43]} Nxe5 {[%emt 0:00:55]} 6. dxe5 {[%emt 0:00:07]} Nc5 {[%emt 0:00:36]} 7. Bc4 {[%emt 0:00:04]} d6 {[%emt 0:00:39]} 8. Qf3 {[%emt 0:03:31][%csl Gc4][%cal Rf3f7] [#] The position is equal.} Ne6 {[%emt 0:06:11]} 9. exd6 {[%emt 0:00:13]} Bxd6 {[%emt 0:00:16]} 10. Nc3 {[%emt 0:00:04][%cal Bb1c3,Bc3e4,Be4c5][%mdl 32]} O-O {[%emt 0:04:25]} 11. Be3 {[%emt 0:00:13] Dodges Nd4} c6 {[%emt 0:18:32]} 12. O-O-O {[%emt 0:01:37] And now Ne4 would win.} Qc7 {[%emt 0:00:41]} 13. Ne4 {[%emt 0:14:13]} Bf4 {[%emt 0:03:34]} 14. g3 {[%emt 0:04:35]} Bxe3+ {[%emt 0:01:50]} 15. Qxe3 {[%emt 0:00:29]} Qb6 {[%emt 0:02:01]} ({Better is} 15... b5 $14 16. Bb3 c5) 16. Qc3 {[%emt 0:06:04]} Nc7 {[%emt 0:04:26] [#]} 17. Nc5 $1 {[%emt 0:10:18] Repels Be6. Hoping for Na4.} Nd5 {[%emt 0:02:02]} 18. Bxd5 {[%emt 0:01:49]} cxd5 {[%emt 0:00:02]} 19. Rxd5 {[%emt 0:00:38]} Qc6 {[%emt 0:01:22] Black is weak on the dark squares} 20. Rhd1 {[%emt 0:02:53]} Qh6+ {[%emt 0:05:18]} ({Black should try} 20... b6 21. Nd7 Qxc3 22. bxc3 Re8) 21. Qd2 $16 {[%emt 0:02:02] White is much more active. The black rooks are passive.} Qxh2 {[%emt 0:00:42]} (21... Qc6 $16 22. Nd7 Re8) 22. Rd8 $18 {[%emt 0:01:21] Intending Rxf8+ and mate. White is clearly better.} Qh6 {[%emt 0:00:20]} 23. Qxh6 {[%emt 0:07:39]} gxh6 {[%emt 0:00:02]} 24. Rxf8+ {[%emt 0:00:09]} Kxf8 {[%emt 0:00:02]} 25. Rd8+ {[%emt 0:00:06]} Ke7 {[%emt 0:02:31]} 26. Rh8 {[%emt 0:00:24]} b6 {[%emt 0:04:49]} 27. Nd3 {[%emt 0:00:29] Weighted Error Value: White=0.02 (flawless) /Black=0.13 (very precise) .  Mistake:       	---       	Black=3      Inaccurate:     	---       	Black=2      OK:         	White=13    	Black=8      Best:        	White=1     	Black=2} 1-0

[Event "Israel Open Championship 2023"]
[Site "Acre"]
[Date "2024.01.28"]
[Round "8.10"]
[White "Steiner-Prozhanski, Giora"]
[Black "Ben Ari, Yannay"]
[Result "0-1"]
[ECO "E24"]
[WhiteElo "2229"]
[BlackElo "2417"]
[Annotator "TA"]
[PlyCount "80"]
[EventDate "2024.01.18"]
[EventType "swiss"]
[EventCountry "ISR"]
[SourceTitle "playchess.com"]
[Source "ChessBase"]
[SourceQuality "1"]
[TimeControl "5400+30"]

{[%evp 14,80,0,0,0,0,0,0,0,0,0,0,27,29,136,0,0,0,0,0,0,-18,-12,-6,-4,-22,-37,-79,-68,-159,-150,-341,-335,-328,-356,-337,-335,-450,-414,-560,-316,-294,-291,-289,-277,-303,-184,-541,-534,-689,-522,-716,-725,-702,-515,-689,-502,-474,-441,-431,-344,-778,-803,-810,-799,-804,-784,-1160,-782]} 1. d4 {[%emt 0:00:11]} Nf6 {[%emt 0:01:39]} 2. c4 {[%emt 0:00:03]} e6 {[%emt 0:00:16]} 3. Nc3 {[%emt 0:00:08]} Bb4 {[%emt 0:00:10]} 4. a3 {[%emt 0:00:07]} Bxc3+ {[%emt 0:00:12]} 5. bxc3 {[%emt 0:00:03]} Nc6 {[%emt 0:00:49]} 6. f3 {[%emt 0:00:34]} b6 {[%emt 0:00:59]} 7. e4 {[%emt 0:00:08][%cal Be2e4,Be4e5][%mdl 32]} Ba6 {[%emt 0:02:07]} 8. Bg5 {[%emt 0:00:13]} h6 {[%emt 0:05:36]} 9. Bh4 {[%emt 0:00:25]} Na5 {[%emt 0:02:07][%cal Od7d6]} 10. e5 {[%emt 0:00:26]} g5 $1 {[%emt 0:01:51] The position is equal.} 11. Bf2 {[%emt 0:00:11]} Nh5 {[%emt 0:04:38][%cal Of7f5,Bf6h5,Bh5f4,Bf4d5,Bd5e7][%mdl 32]} 12. h4 $1 {[%emt 0:00:03]} Nf4 {[%emt 0:41:02]} (12... Bxc4 $6 13. hxg5 Qxg5 (13... hxg5 $2 14. Bxc4 Nxc4 15. f4 $18) 14. Nh3 $16) (12... Nxc4 $2 13. Qa4 $18) 13. hxg5 {[%emt 0:04:07]} Bxc4 {[%emt 0:08:08]} (13... Qxg5 $11 14. g3 Ng6) 14. gxh6 {[%emt 0:17:57]} (14. Rxh6 $6 Rxh6 15. gxh6 Qg5 $11) (14. Bxc4 $16 {Black must now prevent Bf1.} Nxc4 15. g3) 14... Bxf1 $11 {[%emt 0:06:21]} (14... Qg5 $6 15. g3 Nd5 16. f4 $16) 15. Kxf1 {[%emt 0:00:18] [#] Ne2 would now be deadly.} Qg5 $36 {[%emt 0:00:21][%csl LRg2,LRh6][%mdl 2048] Black has good play.} 16. g3 {[%emt 0:08:44]} Nd5 {[%emt 0:00:03]} 17. Qd3 {[%emt 0:14:45]} Rxh6 {[%emt 0:04:03]} 18. Rxh6 {[%emt 0:09:11]} Qxh6 {[%emt 0:00:09]} 19. c4 {[%emt 0:01:42]} Ne7 {[%emt 0:02:40]} 20. Qe4 {[%emt 0:03:08]} Rd8 {[%emt 0:03:42]} 21. Be3 {[%emt 0:01:20]} ({Better is} 21. Qd3 $15) 21... Qg7 {[%emt 0:01:23]} 22. Nh3 $2 {[%emt 0:12:42] Now White is beyond hope.} (22. Ne2 $17) 22... Nf5 $19 {[%emt 0:01:04]} (22... Nxc4 23. Bg5 $19) 23. Bf4 {[%emt 0:05:04]} Nxg3+ {[%emt 0:01:29]} (23... Qxg3 24. Ng5 Nxc4 25. Rc1 $19) 24. Bxg3 {[%emt 0:00:11]} Qxg3 {[%emt 0:00:02]} 25. Qh7 {[%emt 0:06:03] Threatens to win with Qh8+.} Ke7 {[%emt 0:03:56]} (25... Qxf3+ 26. Kg1 Qg4+ (26... Nxc4 $2 {is the wrong capture.} 27. Rf1 $18) 27. Kh1 $19) (25... Nxc4 $2 26. Qh8+ Ke7 27. Qf6+ Ke8 28. Ng5 $18 (28. Qh8+ Ke7 $18) (28. Qh8+ Ke7 $18)) 26. Ke2 {[%emt 0:01:50]} Rg8 {[%emt 0:03:30]} 27. Rg1 {[%emt 0:07:37][%cal Og1g3]} Qh2+ {[%emt 0:00:07]} 28. Kd3 {[%emt 0:00:43] [#] White threatens Qh4+ and mate.} Rf8 $1 {[%emt 0:01:57] ...c5 is the strong threat.} ({Stronger than} 28... Rxg1 29. Qh4+ Kf8 30. Qd8+ Kg7 31. Qf6+ Kg8 32. Qd8+ Kg7 33. Qf6+ Kg8 34. Qd8+ Kg7 $11) 29. Rg7 {[%emt 0:03:52]} c5 {[%emt 0:03:59]} 30. Qh4+ $2 {[%emt 0:01:33]} (30. Ng5 {nothing else works.} Qf4 31. Qe4 Qxe4+ 32. Kxe4) 30... Ke8 {[%emt 0:00:01] Strongly threatening ...Nb3.} 31. Rh7 {[%emt 0:01:06]} Qa2 {[%emt 0:00:02] Hoping for ...Nb3.} 32. dxc5 {[%emt 0:00:30]} Qxa3+ {[%emt 0:00:22]} 33. Ke2 {[%emt 0:00:20]} Qxc5 {[%emt 0:00:15]} 34. f4 {[%emt 0:00:52]} Qxc4+ {[%emt 0:00:56]} 35. Kf2 {[%emt 0:00:15]} Nc6 {[%emt 0:01:15]} 36. Ng5 {[%emt 0:01:16]} Nd4 {[%emt 0:00:24]} 37. Qh5 $2 {[%emt 0:00:27]} (37. Rh8 Qa2+ 38. Kf1 Qc4+ 39. Kg2) 37... Qc2+ {[%emt 0:00:11] Black is clearly winning.} 38. Kf1 {[%emt 0:00:48]} Qc1+ {[%emt 0:00:36]} 39. Kg2 {[%emt 0:00:18]} Qxf4 {[%emt 0:00:17][%cal Od4f5]} 40. Rg7 {[%emt 0:00:45]} Qxe5 {[%emt 0:00:54] Weighted Error Value: White=1.00/Black=0.61.  Loses game:     	White=1     	---        Mistake:       	White=4     	Black=1      Inaccurate:     	White=4     	Black=3      OK:         	White=8     	Black=9      Best:        	White=4     	Black=2      Strong:       	White=1     	Black=2} 0-1